bitfinex/quotes_BTCUSD_20250421
["timestamp","ask_amount","ask_price","bid_price","bid_amount"]
[1745247081791,0.007,87814.0,87813.0,0.22875672]
[1745247081970,0.007,87814.0,87813.0,0.00100001]
[1745247082400,0.005,87814.0,87813.0,0.00100001]
[1745247082898,0.01260582,87814.0,87813.0,0.00100001]
[1745247083695,0.24035993,87814.0,87813.0,0.00100001]
[1745247083970,0.23635993,87814.0,87813.0,1e-08]
[1745247084130,0.23735993,87814.0,87813.0,1e-08]
[1745247084333,0.52111587,87814.0,87813.0,1e-08]
[1745247085515,0.01138978,87798.0,87795.0,0.0452]
[1745247085831,0.01138887,87805.0,87795.0,0.05659017]
[1745247085998,0.01138926,87802.0,87795.0,0.0452]
[1745247086195,0.23420481,87801.0,87795.0,0.0452]
[1745247086400,0.16641681,87801.0,87795.0,0.28439268]
[1745247086600,0.16641681,87801.0,87795.0,0.05659017]
[1745247086800,0.001,87798.0,87795.0,0.05659017]
[1745247086999,0.00639037,87797.0,87795.0,0.0452]
[1745247088070,0.00639037,87797.0,87795.0,0.0462]
[1745247088567,0.00639037,87797.0,87795.0,0.0472]
[1745247089730,0.00639037,87797.0,87796.0,0.22780081]
[1745247089943,0.01492979,87797.0,87795.0,0.27500083]
[1745247090311,4e-05,87798.0,87796.0,0.22780081]
[1745247090921,0.001,87797.0,87796.0,0.22780081]
[1745247091325,0.22780081,87796.0,87795.0,0.0452]
[1745247091496,0.22779915,87797.0,87795.0,0.0452]
[1745247091702,0.22779915,87797.0,87796.0,0.001]
[1745247091919,0.22780641,87794.0,87788.0,0.01139107]
[1745247092312,0.23819671,87794.0,87788.0,0.01139107]
[1745247092520,0.23819671,87794.0,87787.0,0.27302274]
[1745247092521,0.23920262,87792.0,87787.0,0.0565912]
[1745247092881,0.01139055,87792.0,87787.0,0.0565912]
[1745247093086,0.23920118,87793.0,87787.0,0.0565912]
[1745247093290,0.23920118,87793.0,87788.0,0.01239107]
[1745247093815,0.23920118,87793.0,87788.0,0.01139107]
[1745247094013,0.01139042,87793.0,87788.0,0.01139107]
[1745247094241,0.01139042,87793.0,87788.0,0.01239107]
[1745247094598,0.01139042,87793.0,87788.0,0.001]
[1745247094818,0.22781897,87789.0,87788.0,0.002]
[1745247095039,0.83157491,87789.0,87788.0,0.002]
[1745247095250,0.84219517,87789.0,87788.0,0.002]
[1745247095458,0.86343568,87789.0,87788.0,0.002]
[1745247095925,0.29561671,87789.0,87788.0,0.002]
[1745247096142,0.29561671,87789.0,87788.0,0.003]
[1745247096356,0.26375594,87789.0,87788.0,0.003]
[1745247096533,0.26375594,87789.0,87788.0,0.002]
[1745247096704,0.26875594,87789.0,87788.0,0.003]
[1745247097507,0.30061671,87789.0,87788.0,0.003]
[1745247097689,0.30065671,87789.0,87788.0,0.003]
[1745247097883,0.29565671,87789.0,87788.0,0.002]
[1745247098143,0.22784492,87779.0,87777.0,1.64040684]
[1745247098287,0.11375594,87778.0,87777.0,1.64040684]
[1745247098488,0.26375594,87778.0,87777.0,1.64040684]
[1745247099115,0.16375594,87778.0,87777.0,1.64040684]
[1745247099496,0.16389247,87778.0,87777.0,1.64040684]
[1745247099624,0.16489247,87778.0,87777.0,1.64040684]
[1745247100017,0.16689247,87778.0,87777.0,1.64140684]
[1745247101176,0.16693247,87778.0,87777.0,1.64140684]
[1745247101734,0.16697247,87778.0,87777.0,1.64140684]
[1745247101937,0.15321653,87778.0,87777.0,1.64140684]
[1745247102179,0.38110405,87778.0,87777.0,1.64140684]
[1745247102717,0.15325653,87778.0,87777.0,1.64140684]
[1745247102922,0.38110405,87778.0,87777.0,1.64140684]
[1745247104630,0.15325653,87778.0,87777.0,1.64140684]
[1745247105148,0.15325653,87778.0,87777.0,1.86925696]
[1745247105351,0.00325653,87778.0,87777.0,1.91775696]
[1745247107338,0.00325653,87778.0,87777.0,1.91875696]
[1745247107563,0.00012,87789.0,87786.0,0.01139133]
[1745247107765,0.00012,87789.0,87788.0,0.27632157]
[1745247107964,0.00012,87789.0,87788.0,0.39007751]
[1745247108289,0.00012,87789.0,87788.0,0.27632157]
[1745247108760,0.00112,87789.0,87788.0,0.27632157]
[1745247108962,0.00012,87789.0,87788.0,0.27632157]
[1745247109341,0.00012,87789.0,87788.0,0.27732157]
[1745247109511,0.00112,87789.0,87788.0,0.27732157]
[1745247111057,0.00112,87789.0,87788.0,0.38107752]
[1745247113445,4e-05,87798.0,87797.0,0.56779821]
[1745247113651,4e-05,87798.0,87797.0,0.77905415]
[1745247114028,4e-05,87798.0,87797.0,1.19085415]
[1745247114881,0.00104,87798.0,87797.0,1.19085415]
[1745247115202,0.00032,87822.0,87819.0,0.22774114]
[1745247115421,0.00032,87822.0,87819.0,0.2300183]
[1745247116088,0.00856261,87821.0,87819.0,0.27554114]
[1745247116493,0.00098218,87820.0,87819.0,0.27554114]
[1745247117654,0.00198218,87820.0,87819.0,0.27554114]
[1745247118275,0.00198218,87820.0,87819.0,0.03693008]
[1745247118494,0.00198218,87820.0,87807.0,0.22777006]
[1745247118684,0.00298218,87820.0,87816.0,0.23913593]
[1745247118882,0.00664748,87819.0,87817.0,0.01138731]
[1745247119084,0.00664748,87819.0,87817.0,0.23913253]
[1745247119967,0.00098218,87820.0,87819.0,0.22774114]
[1745247121425,0.00298218,87820.0,87819.0,0.22774114]
[1745247121628,0.00298218,87820.0,87819.0,0.23001821]
[1745247122048,0.00298218,87820.0,87819.0,0.34377415]
[1745247122268,0.00298218,87820.0,87819.0,0.34149708]
[1745247122463,0.00298218,87820.0,87819.0,0.22774114]
[1745247123500,0.01138757,87815.0,87812.0,0.0497]
[1745247123722,0.00679515,87814.0,87812.0,0.01138796]
[1745247123948,0.00298218,87820.0,87814.0,0.23914152]
[1745247124125,0.01138757,87815.0,87810.0,0.23915056]
[1745247124300,0.00679515,87814.0,87813.0,0.23914454]
[1745247124462,0.01138744,87816.0,87813.0,0.23914454]
[1745247124670,0.00780176,87815.0,87813.0,0.23914454]
[1745247125081,0.00680176,87815.0,87813.0,0.23914454]
[1745247125281,0.23913497,87817.0,87813.0,0.23914454]
[1745247125487,0.00680837,87816.0,87813.0,0.23914454]
[1745247125694,0.001,87814.0,87813.0,0.23914454]
[1745247125902,0.04979515,87814.0,87811.0,0.01138809]
[1745247126355,0.003,87814.0,87812.0,0.22775894]
[1745247126579,0.003,87814.0,87813.0,0.11375594]
[1745247126823,0.003,87814.0,87813.0,0.15945594]
[1745247127033,0.001,87814.0,87813.0,0.0457]
[1745247127450,0.001,87816.0,87814.0,0.22775411]
[1745247127876,0.00098218,87820.0,87819.0,0.22774114]
[1745247128512,0.00098218,87820.0,87816.0,0.01138744]
[1745247128513,0.0123691,87820.0,87816.0,0.01138744]
[1745247128738,0.00098218,87820.0,87817.0,0.01138731]
[1745247128924,0.00098218,87820.0,87819.0,0.22774114]
[1745247129154,0.00098218,87820.0,87818.0,0.22774374]
[1745247129343,0.00098218,87820.0,87813.0,0.0457]
[1745247129513,0.01138744,87816.0,87812.0,0.01138796]
[1745247129726,0.0113877,87814.0,87810.0,0.01138822]
[1745247130075,0.23914877,87812.0,87809.0,0.22776639]
[1745247130203,0.01138757,87815.0,87812.0,0.01138796]
[1745247130399,0.22775445,87814.0,87812.0,0.01138796]
[1745247130603,0.22775717,87813.0,87810.0,0.01138822]
[1745247131436,0.0113877,87814.0,87812.0,0.22775841]
[1745247131684,0.23913929,87815.0,87812.0,0.22775841]
[1745247131832,0.22775517,87814.0,87811.0,0.01138809]
[1745247132198,0.01138783,87813.0,87810.0,0.001]
[1745247132409,0.00098218,87820.0,87817.0,0.01138731]
[1745247132595,0.16098218,87820.0,87818.0,0.22774374]
[1745247132839,0.16098218,87820.0,87819.0,0.22774114]
[1745247133179,0.16098218,87820.0,87817.0,0.23913186]
[1745247133379,0.00098218,87820.0,87819.0,0.22774114]
[1745247133784,0.00098218,87820.0,87819.0,0.2757184]
[1745247133994,0.00098218,87820.0,87819.0,0.27344114]
[1745247134786,0.00032,87822.0,87821.0,0.22773596]
[1745247134996,0.0008454,87828.0,87826.0,0.22772299]
[1745247135198,0.00012669,87827.0,87826.0,0.34147893]
[1745247137586,1e-08,87834.0,87833.0,0.56770484]
[1745247137789,1e-08,87834.0,87833.0,1.20170163]
[1745247138491,0.00208,87849.0,87848.0,0.56766596]
[1745247138703,0.00208,87849.0,87848.0,0.7300219]
[1745247138965,0.00208,87849.0,87848.0,1.1418219]
[1745247139114,0.0008452,87850.0,87848.0,1.1418219]
[1745247139115,0.00064541,87851.0,87850.0,0.56766078]
[1745247139317,0.00064541,87851.0,87850.0,1.09321672]
[1745247139523,0.00064541,87851.0,87850.0,1.10775757]
[1745247139721,0.00064541,87851.0,87850.0,1.15635757]
[1745247140221,0.0008452,87856.0,87855.0,0.22764782]
[1745247140439,0.0008464,87858.0,87857.0,0.58218349]
[1745247140661,0.00098312,87858.0,87857.0,0.68139858]
[1745247141090,0.00098312,87858.0,87857.0,0.68594958]
[1745247142137,0.00098312,87858.0,87857.0,0.68694958]
[1745247142545,0.00098312,87858.0,87857.0,0.68794958]
[1745247143319,0.00102312,87858.0,87857.0,0.68794958]
[1745247143941,0.00106312,87858.0,87857.0,0.68794958]
[1745247145718,0.00106312,87858.0,87857.0,0.34794958]
[1745247145929,0.00106312,87858.0,87857.0,0.22964264]
[1745247146130,0.00106312,87858.0,87857.0,0.23191866]
[1745247147808,0.00106312,87858.0,87857.0,0.23191861]
[1745247150268,0.00106312,87858.0,87857.0,0.34567455]
[1745247150472,1e-08,87866.0,87865.0,0.27362191]
[1745247150675,1e-08,87866.0,87865.0,0.72737785]
[1745247150883,1e-08,87866.0,87865.0,0.38837785]
[1745247151088,1e-08,87866.0,87865.0,0.38737785]
[1745247151289,1e-08,87866.0,87865.0,0.27362191]
[1745247151686,1e-08,87866.0,87865.0,0.27462191]
[1745247151847,1e-08,87866.0,87865.0,0.28172619]
[1745247152564,1e-08,87866.0,87865.0,0.27892619]
[1745247152774,1e-08,87866.0,87865.0,0.27792619]
[1745247152971,4.001e-05,87866.0,87865.0,0.00710428]
[1745247153170,4.001e-05,87866.0,87864.0,0.2276238]
[1745247153589,8.001e-05,87866.0,87864.0,0.2276238]
[1745247154224,8.001e-05,87866.0,87865.0,0.00227595]
[1745247154536,8.001e-05,87866.0,87865.0,0.00938032]
[1745247154709,8.001e-05,87866.0,87865.0,0.00710437]
[1745247156196,8.001e-05,87866.0,87865.0,0.00938029]
[1745247156797,8.001e-05,87866.0,87865.0,0.12086031]
[1745247158995,8.001e-05,87866.0,87865.0,0.12086025]
[1745247159998,8.001e-05,87866.0,87864.0,0.12476044]
[1745247160599,8.001e-05,87866.0,87836.0,0.0453]
[1745247160600,0.22763484,87861.0,87836.0,0.0453]
[1745247160795,0.02746637,87865.0,87861.0,0.2390137]
[1745247160994,0.22762467,87864.0,87861.0,0.01138161]
[1745247161195,0.02268282,87865.0,87864.0,0.001]
[1745247161706,0.2503053,87865.0,87864.0,0.001]
[1745247161883,0.18268282,87865.0,87864.0,0.001]
[1745247162469,0.18268282,87865.0,87862.0,0.23901083]
[1745247163101,0.23900689,87864.0,87860.0,0.22763403]
[1745247163257,0.39900689,87864.0,87859.0,0.23901676]
[1745247163603,0.16,87864.0,87860.0,0.01138174]
[1745247164483,0.16,87864.0,87862.0,0.22762914]
[1745247165840,0.16,87864.0,87863.0,0.2276271]
[1745247166404,0.00858992,87864.0,87863.0,0.2276271]
[1745247166607,8.001e-05,87866.0,87865.0,0.22762191]
[1745247167916,0.00108001,87866.0,87865.0,0.22762191]
[1745247168096,0.00108001,87866.0,87865.0,0.27969794]
[1745247168275,0.00108001,87866.0,87865.0,0.27742191]
[1745247169196,0.00208001,87866.0,87865.0,0.27742191]
[1745247170238,0.00208001,87866.0,87865.0,0.27722191]
[1745247172001,0.00208001,87866.0,87865.0,0.28432565]
[1745247173057,0.00208001,87866.0,87865.0,0.23452565]
[1745247173461,0.22969933,87866.0,87865.0,0.00710374]
[1745247173933,0.23448316,87866.0,87865.0,0.00710374]
[1745247174136,0.00566788,87866.0,87865.0,0.00710374]
[1745247174258,0.2332872,87866.0,87865.0,0.00710374]
[1745247174451,0.00566788,87866.0,87865.0,0.23472565]
[1745247174652,0.00566788,87866.0,87865.0,0.00710374]
[1745247174858,1.0950951,87866.0,87865.0,0.00710374]
[1745247175062,1.0950951,87866.0,87832.0,0.01138537]
[1745247175063,0.01138433,87840.0,87833.0,0.22770305]
[1745247175265,0.11375594,87839.0,87836.0,0.23908076]
[1745247175466,0.11375594,87839.0,87837.0,0.22769335]
[1745247175687,0.00461271,87838.0,87837.0,0.22769335]
[1745247175892,0.01138394,87843.0,87837.0,0.01138472]
[1745247176131,0.11375594,87842.0,87839.0,0.22768684]
[1745247176301,0.51745379,87842.0,87838.0,0.01138459]
[1745247176499,0.30137309,87842.0,87839.0,0.01138446]
[1745247176731,0.51767114,87842.0,87838.0,0.01138459]
[1745247176941,0.00463032,87842.0,87841.0,0.22768411]
[1745247177141,0.01138342,87847.0,87842.0,0.01138407]
[1745247177406,0.23903294,87854.0,87848.0,0.22766596]
[1745247177614,0.11375594,87853.0,87851.0,0.23903967]
[1745247177848,0.38765095,87854.0,87853.0,0.22765301]
[1745247177849,0.00836671,87854.0,87853.0,0.22765301]
[1745247178271,0.01138239,87855.0,87851.0,0.0113829]
[1745247178457,0.01138239,87855.0,87852.0,0.01138278]
[1745247178588,0.01138239,87855.0,87852.0,0.23903686]
[1745247178988,0.24103751,87853.0,87848.0,0.01138329]
[1745247179193,0.01338265,87853.0,87851.0,0.22765744]
[1745247179397,0.01138265,87853.0,87851.0,0.22765744]
[1745247179605,0.2486572,87854.0,87851.0,0.22765744]
[1745247179980,0.02100592,87854.0,87852.0,0.22765469]
[1745247180200,0.0096234,87854.0,87852.0,0.22765469]
[1745247180456,0.0086234,87854.0,87852.0,0.22765469]
[1745247180908,0.11575594,87855.0,87853.0,0.22765281]
[1745247181077,0.11475594,87855.0,87852.0,0.23903536]
[1745247181280,0.001,87854.0,87852.0,0.23903536]
[1745247181485,0.001,87854.0,87848.0,0.22766499]
[1745247181486,0.0113829,87851.0,87848.0,0.22766499]
[1745247181707,0.001,87853.0,87851.0,0.22765766]
[1745247181907,0.17,87853.0,87851.0,0.22765766]
[1745247182538,0.17,87853.0,87846.0,0.2276709]
[1745247182539,0.2276622,87850.0,87842.0,0.23906541]
[1745247182688,0.01138368,87845.0,87840.0,0.01138433]
[1745247182899,0.01138368,87845.0,87843.0,0.22767866]
[1745247183113,0.2390575,87845.0,87842.0,0.23906558]
[1745247183306,0.2390575,87845.0,87841.0,0.0113842]
[1745247183614,0.2390613,87844.0,87839.0,0.01138446]
[1745247183824,0.0113842,87841.0,87837.0,0.23907886]
[1745247184682,0.0113842,87841.0,87838.0,0.22769184]
[1745247184888,0.23906875,87841.0,87838.0,0.22769184]
[1745247185799,0.24006875,87841.0,87838.0,0.22769184]
[1745247186452,0.22769498,87837.0,87832.0,0.00013672]
[1745247186674,0.22770225,87834.0,87832.0,0.00013672]
[1745247187301,0.00430967,87833.0,87832.0,0.00013672]
[1745247187500,0.00430967,87833.0,87832.0,0.22784416]
[1745247187914,0.002,87841.0,87838.0,0.01138459]
[1745247188266,0.00434049,87840.0,87838.0,0.01138459]
[1745247188421,0.17434049,87840.0,87838.0,0.23907535]
[1745247188627,0.17434049,87840.0,87839.0,0.22768929]
[1745247188807,0.17434049,87840.0,87838.0,0.23907535]
[1745247189836,0.17534049,87840.0,87838.0,0.23907554]
[1745247190048,0.17634049,87840.0,87838.0,0.23907554]
[1745247190250,0.01138459,87838.0,87832.0,0.23922892]
[1745247190599,0.01138485,87836.0,87833.0,0.23908842]
[1745247190742,0.00431848,87835.0,87834.0,0.01138511]
[1745247190953,0.22770193,87835.0,87832.0,0.23922892]
[1745247191155,0.23201677,87834.0,87832.0,0.01152209]
[1745247191536,0.00431407,87834.0,87832.0,0.23922813]
[1745247191779,0.23201711,87834.0,87832.0,0.00013672]
[1745247192368,0.00431407,87834.0,87832.0,0.22784375]
[1745247192972,0.00431407,87834.0,87832.0,0.00013672]
[1745247193173,0.22770484,87833.0,87832.0,0.00013672]
[1745247193367,0.23201451,87833.0,87832.0,0.00013672]
[1745247194027,0.00430967,87833.0,87832.0,0.00013672]
[1745247194241,0.23908691,87835.0,87832.0,0.00013672]
[1745247194401,0.22770484,87833.0,87832.0,0.00013672]
[1745247194609,0.16430967,87833.0,87832.0,0.00013672]
[1745247194806,0.39201451,87833.0,87832.0,0.00013672]
[1745247195030,0.50577045,87833.0,87832.0,0.00013672]
[1745247195431,0.50677045,87833.0,87832.0,0.00013672]
[1745247196582,0.00530967,87833.0,87832.0,0.22784416]
[1745247197009,0.001,87833.0,87832.0,0.22784416]
[1745247197151,0.002,87833.0,87832.0,0.22784416]
[1745247197378,0.002,87833.0,87832.0,0.2784209]
[1745247197591,0.002,87833.0,87832.0,0.27614416]
[1745247198201,0.001,87833.0,87832.0,0.27614416]
[1745247198845,0.002,87833.0,87832.0,0.27614416]
[1745247200818,1e-08,87833.0,87832.0,0.90902095]
[1745247201033,0.01246097,87866.0,87849.0,0.22766337]
[1745247201251,0.01138109,87865.0,87849.0,0.27576337]
[1745247201459,0.01249011,87866.0,87849.0,0.27576337]
[1745247202583,0.002,87850.0,87849.0,0.27576337]
[1745247203220,0.00108001,87866.0,87865.0,0.22762191]
[1745247204051,0.00945274,87866.0,87865.0,0.27572191]
[1745247204265,0.00108001,87866.0,87865.0,0.27572191]
[1745247204681,0.00208001,87866.0,87865.0,0.27572191]
[1745247204891,0.00208001,87866.0,87865.0,0.28282532]
[1745247205300,0.0008462,87869.0,87868.0,0.56761414]
[1745247205504,0.0008454,87872.0,87871.0,0.22760637]
[1745247205722,0.0008454,87872.0,87871.0,0.34136231]
[1745247205930,0.0008454,87872.0,87871.0,0.22760637]
[1745247206513,0.0008454,87872.0,87871.0,0.23470978]
[1745247206944,0.0008454,87872.0,87871.0,0.23570978]
[1745247208077,0.0008454,87872.0,87871.0,0.2379854]
[1745247208506,0.0008454,87872.0,87871.0,0.23570978]
[1745247208928,0.0008454,87872.0,87871.0,0.23798553]
[1745247210289,0.0008454,87872.0,87871.0,0.35174147]
[1745247210490,1e-08,87872.0,87871.0,0.34946572]
[1745247210708,1e-08,87872.0,87871.0,0.39756572]
[1745247210941,0.0008448,87894.0,87886.0,0.56756753]
[1745247210942,1e-08,87887.0,87886.0,0.56756753]
[1745247211166,1e-08,87887.0,87886.0,1.25634347]
[1745247211370,0.00013671,87887.0,87886.0,1.25634347]
[1745247211595,0.00013671,87887.0,87886.0,1.26344688]
[1745247212024,0.0008448,87894.0,87886.0,1.26344688]
[1745247212242,0.000845,87900.0,87899.0,0.56753387]
[1745247212456,1e-08,87900.0,87899.0,0.68128981]
[1745247212689,1e-08,87901.0,87900.0,0.34]
[1745247212885,1e-08,87901.0,87900.0,0.50895935]
[1745247213095,0.002,87909.0,87901.0,0.22752869]
[1745247213299,0.0028448,87939.0,87920.0,0.27557952]
[1745247213505,0.00021659,87921.0,87920.0,0.39069952]
[1745247214962,0.00121659,87921.0,87920.0,0.39069952]
[1745247215820,0.00121659,87921.0,87920.0,0.50445546]
[1745247216230,0.00321659,87921.0,87920.0,0.50445546]
[1745247216631,0.00321659,87921.0,87920.0,0.27557952]
[1745247216863,0.00321659,87921.0,87919.0,0.22748187]
[1745247217069,0.00221659,87921.0,87919.0,0.22748187]
[1745247217502,0.00321659,87921.0,87920.0,0.22747952]
[1745247217920,0.00021659,87921.0,87920.0,0.22747952]
[1745247218413,0.00121659,87921.0,87920.0,0.22747952]
[1745247218648,0.15121659,87921.0,87917.0,0.01137436]
[1745247218856,0.15221659,87921.0,87919.0,0.22748102]
[1745247219059,0.00321659,87921.0,87919.0,0.22748102]
[1745247219507,0.00221659,87921.0,87919.0,0.22748102]
[1745247219967,0.00421659,87921.0,87919.0,0.22748102]
[1745247220198,0.00221659,87921.0,87919.0,0.22748102]
[1745247220414,0.00421659,87921.0,87919.0,0.22748102]
[1745247220996,0.00621659,87921.0,87919.0,0.22748102]
[1745247221200,0.00421659,87921.0,87919.0,0.22748102]
[1745247221400,0.00621659,87921.0,87919.0,0.22748102]
[1745247222869,0.00621659,87921.0,87918.0,0.23885734]
[1745247223322,0.01137397,87920.0,87913.0,0.01137488]
[1745247223573,0.01137423,87918.0,87914.0,0.01137475]
[1745247223818,0.22750097,87912.0,87907.0,0.23888803]
[1745247224022,0.01137539,87909.0,87905.0,0.23889421]
[1745247224224,0.01498082,87908.0,87902.0,0.0113763]
[1745247224467,0.01498082,87908.0,87903.0,0.22752275]
[1745247224621,0.0036053,87908.0,87906.0,0.22751345]
[1745247224821,0.01137578,87906.0,87898.0,0.01137682]
[1745247225029,0.23889739,87904.0,87900.0,0.01137656]
[1745247225228,0.00358882,87903.0,87901.0,0.23890367]
[1745247225474,0.00358882,87903.0,87901.0,0.01137643]
[1745247225675,0.24249109,87903.0,87897.0,0.01137695]
[1745247225901,0.2275261,87902.0,87899.0,0.23890984]
[1745247226062,0.0047807,87903.0,87900.0,0.22753128]
[1745247226255,0.23889265,87906.0,87901.0,0.01137643]
[1745247226469,0.00469689,87905.0,87904.0,0.22752093]
[1745247226858,0.22751906,87905.0,87900.0,0.23890747]
[1745247227100,0.0113763,87902.0,87897.0,0.01137695]
[1745247227440,0.001,87902.0,87900.0,0.23890597]
[1745247227650,0.001,87902.0,87895.0,0.01137721]
[1745247227651,0.0046793,87901.0,87895.0,0.01137721]
[1745247227858,0.0046793,87901.0,87899.0,0.22753321]
[1745247228063,0.001,87905.0,87902.0,0.0113763]
[1745247228239,0.001,87905.0,87903.0,0.22979849]
[1745247228444,0.001,87905.0,87903.0,0.35065488]
[1745247228659,0.001,87905.0,87903.0,0.34837991]
[1745247228894,0.001,87905.0,87903.0,0.34127946]
[1745247229312,0.00851052,87918.0,87917.0,0.22748728]
[1745247229643,0.22745518,87930.0,87920.0,0.22747952]
[1745247229866,0.22745449,87930.0,87920.0,0.22747952]
[1745247230073,0.01119827,87928.0,87920.0,0.22747952]
[1745247230472,0.23865823,87928.0,87920.0,0.22747952]
[1745247230679,0.01119827,87928.0,87920.0,0.22747952]
[1745247230880,0.01119827,87928.0,87920.0,0.23457902]
[1745247231262,0.00221659,87921.0,87920.0,0.23457902]
[1745247232237,0.00225659,87921.0,87920.0,0.23457902]
[1745247232556,0.00525659,87921.0,87920.0,0.23457902]
[1745247232879,0.00225659,87921.0,87920.0,0.23457902]
[1745247233080,0.00125659,87921.0,87920.0,0.23457902]
[1745247233277,0.00225659,87921.0,87920.0,0.23457902]
[1745247234806,0.00425659,87921.0,87920.0,0.23457902]
[1745247235620,0.00425659,87921.0,87920.0,0.22747952]
[1745247236022,0.00125659,87921.0,87920.0,0.22747952]
[1745247236427,0.00325659,87921.0,87920.0,0.22747952]
[1745247237178,0.00325659,87921.0,87920.0,0.23457892]
[1745247237645,0.00325659,87921.0,87920.0,0.28177892]
[1745247240504,0.00325659,87921.0,87920.0,0.80733486]
[1745247240769,0.0028448,87939.0,87920.0,0.80733486]
[1745247240770,0.0018448,87939.0,87938.0,0.22743296]
[1745247241084,0.0018448,87939.0,87938.0,0.9175025]
[1745247241309,0.0018448,87939.0,87938.0,0.9152289]
[1745247242060,0.0018448,87939.0,87938.0,0.75677369]
[1745247242342,0.0018448,87939.0,87938.0,0.64173369]
[1745247242589,0.0018448,87939.0,87938.0,0.75673369]
[1745247242811,0.0018448,87939.0,87938.0,0.75673394]
[1745247243320,0.0018448,87939.0,87938.0,0.64173394]
[1745247243598,0.0018448,87939.0,87938.0,0.527978]
[1745247244094,0.0018448,87939.0,87938.0,0.64173394]
[1745247245216,0.0018448,87939.0,87938.0,0.63463647]
[1745247245856,0.0018448,87939.0,87938.0,0.68163647]
[1745247246079,0.00036,87950.0,87949.0,0.22740451]
[1745247246294,0.00049656,87950.0,87949.0,0.3434339]
[1745247246508,0.00049656,87950.0,87949.0,0.34116045]
[1745247246721,0.00049656,87950.0,87949.0,0.34825703]
[1745247247149,0.00049656,87950.0,87949.0,0.23450109]
[1745247247415,0.00049656,87950.0,87949.0,0.24180698]
[1745247248048,0.00049656,87950.0,87949.0,0.34825703]
[1745247248697,0.00100001,87950.0,87949.0,0.39675703]
[1745247249133,1e-08,87950.0,87949.0,0.39675703]
[1745247249362,1e-08,87950.0,87949.0,0.80855703]
[1745247249760,1e-08,87950.0,87949.0,1.14855703]
[1745247250006,1e-08,87950.0,87949.0,1.14955703]
[1745247250708,1e-08,87950.0,87949.0,1.15055703]
[1745247251488,1e-08,87950.0,87949.0,1.26555703]
[1745247251883,1e-08,87950.0,87949.0,1.26810203]
[1745247252108,1e-08,87950.0,87949.0,1.27010203]
[1745247252697,1e-08,87950.0,87949.0,1.26300545]
[1745247252906,0.00012,87972.0,87963.0,0.01136841]
[1745247253185,0.00012,87972.0,87968.0,0.2273554]
[1745247253365,0.00012,87972.0,87968.0,0.22962845]
[1745247253634,0.00012,87972.0,87968.0,0.23672287]
[1745247253891,0.00012,87972.0,87968.0,0.24400389]
[1745247254098,0.00012,87972.0,87968.0,0.24173084]
[1745247255128,0.003,87969.0,87968.0,0.24173084]
[1745247256122,0.003,87969.0,87968.0,1.16912763]
[1745247256323,0.003,87969.0,87968.0,1.18043152]
[1745247256703,0.003,87969.0,87968.0,1.1731505]
[1745247257291,1e-08,87969.0,87968.0,1.16605608]
[1745247257493,0.0004221,87986.0,87985.0,0.22731147]
[1745247257729,0.00087749,87986.0,87985.0,0.50332741]
[1745247258324,0.00087749,87986.0,87985.0,0.88852741]
[1745247258698,0.00187749,87986.0,87985.0,0.89307141]
[1745247259303,0.00287749,87986.0,87985.0,0.55307141]
[1745247259511,0.00187749,87986.0,87985.0,0.34681547]
[1745247259716,0.00087749,87986.0,87985.0,0.34681547]
[1745247259922,0.00187749,87986.0,87985.0,0.34681547]
[1745247260952,0.00187749,87986.0,87985.0,0.23185547]
[1745247261754,0.00187749,87986.0,87984.0,0.4118]
[1745247261956,0.00187749,87986.0,87983.0,0.01136583]
[1745247262156,0.00187749,87986.0,87985.0,0.22731147]
[1745247262289,0.00187749,87986.0,87984.0,0.22731269]
[1745247262492,0.00681721,87985.0,87983.0,0.23868108]
[1745247262729,0.22732877,87979.0,87974.0,0.02273299]
[1745247262936,0.22732653,87980.0,87976.0,0.01136673]
[1745247263139,0.00677114,87978.0,87977.0,0.23869873]
[1745247263340,0.22731922,87982.0,87978.0,0.01136647]
[1745247263644,0.22732335,87981.0,87977.0,0.23869873]
[1745247263841,0.22733328,87977.0,87974.0,0.01136699]
[1745247264088,0.22733412,87977.0,87974.0,0.01136699]
[1745247264279,0.17,87977.0,87975.0,0.22733686]
[1745247264493,0.17,87977.0,87974.0,0.01136699]
[1745247264704,0.17870543,87977.0,87975.0,0.22733713]
[1745247265370,0.17970543,87977.0,87975.0,0.22733713]
[1745247265600,0.17970543,87977.0,87974.0,0.23870648]
[1745247265810,0.17970543,87977.0,87975.0,0.22733614]
[1745247266024,0.17974543,87977.0,87975.0,0.22733614]
[1745247266176,0.18174543,87977.0,87975.0,0.22733614]
[1745247266781,0.18174543,87977.0,87969.0,0.22735152]
[1745247266990,0.22734374,87973.0,87969.0,0.01136764]
[1745247267206,0.11375594,87972.0,87971.0,0.01136738]
[1745247267422,0.17,87972.0,87971.0,0.01136738]
[1745247268262,0.17,87972.0,87970.0,0.01136751]
[1745247268483,0.39934545,87972.0,87969.0,0.23871854]
[1745247268686,0.172,87972.0,87969.0,0.23872045]
[1745247269091,0.172,87972.0,87968.0,0.01136777]
[1745247269345,0.01136789,87967.0,87960.0,0.0113688]
[1745247269538,0.22737108,87962.0,87959.0,0.01136893]
[1745247269740,0.22737108,87962.0,87959.0,0.23874593]
[1745247269950,0.0113688,87960.0,87949.0,0.01137022]
[1745247270146,0.0113688,87960.0,87951.0,0.01136996]
[1745247270147,0.22738664,87956.0,87951.0,0.01136996]
[1745247270378,0.01136893,87959.0,87952.0,0.01136983]
[1745247270533,0.22738383,87957.0,87954.0,0.01136957]
[1745247270702,0.38201366,87960.0,87955.0,0.01136945]
[1745247270902,0.01136906,87958.0,87949.0,0.01237022]
[1745247271207,0.22738642,87956.0,87953.0,0.22739402]
[1745247271327,0.22738642,87956.0,87948.0,0.01137035]
[1745247271328,0.22739804,87952.0,87948.0,0.01137035]
[1745247271534,0.14,87952.0,87950.0,0.22740193]
[1745247272920,0.14854363,87952.0,87950.0,0.22740193]
[1745247273468,0.14858363,87952.0,87950.0,0.22740193]
[1745247273681,0.14858363,87952.0,87951.0,0.0022739]
[1745247273682,4e-05,87952.0,87951.0,0.0022739]
[1745247273806,4e-05,87952.0,87951.0,0.05037366]
[1745247274012,4e-05,87952.0,87950.0,0.22740193]
[1745247274406,4e-05,87952.0,87951.0,0.22739934]
[1745247275246,4e-05,87952.0,87951.0,0.22967306]
[1745247275646,0.00104,87952.0,87951.0,0.22967306]
[1745247276960,0.00104,87952.0,87951.0,0.22967288]
[1745247277735,0.00104,87952.0,87951.0,0.86791528]
[1745247278000,0.00108,87952.0,87951.0,0.86891528]
[1745247278215,0.00112,87952.0,87951.0,0.75295528]
[1745247278417,0.00012,87952.0,87951.0,0.75515934]
[1745247278598,0.00012,87952.0,87951.0,0.75415934]
[1745247278933,0.00012,87952.0,87951.0,0.75515934]
[1745247280840,0.00012,87952.0,87951.0,0.34335934]